bitfinex-derivatives/quotes_SOLF0:USTF0_20250310
["timestamp","ask_amount","ask_price","bid_price","bid_amount"]
[1741608755659,0.05704493,129.69,129.66,0.04884805]
[1741608756159,7.76714493,129.69,129.66,0.04884805]
[1741608756362,0.05704493,129.69,129.66,0.04884805]
[1741608758766,0.05704493,129.69,129.66,30.81893999]
[1741608758953,1.938,129.76,129.68,7.71]
[1741608759360,1.938,129.76,129.66,30.77009194]
[1741608759563,1.938,129.76,129.63,30.86129194]
[1741608759866,30.77009194,129.73,129.62,2.2204]
[1741608760070,0.05765855,129.71,129.68,0.05179243]
[1741608760569,0.05765855,129.71,129.64,62.0]
[1741608760764,1.9989,129.72,129.64,62.0]
[1741608760977,30.77009194,129.7,129.6,30.77009194]
[1741608761463,1.9332,129.69,129.57,30.86129194]
[1741608761667,0.05552905,129.64,129.62,0.0487685]
[1741608761868,1.9332,129.69,129.62,0.0487685]
[1741608762167,1.9332,129.69,129.63,7.7133]
[1741608762370,2.1177,129.75,129.62,30.77009194]
[1741608762565,2.1177,129.75,129.65,30.77009194]
[1741608762566,1.9361,129.74,129.65,30.77009194]
[1741608762869,1.9361,129.74,129.6,30.77009194]
[1741608763076,32.70619194,129.74,129.61,1.37239381]
[1741608763275,0.05735555,129.69,129.66,0.04857013]
[1741608763967,0.05735555,129.69,129.66,62.04857013]
[1741608764372,7.7106,129.68,129.66,62.04857013]
[1741608764673,0.05735555,129.69,129.66,62.04857013]
[1741608766177,7.7106,129.68,129.66,62.04857013]
[1741608766380,0.05735555,129.69,129.66,0.04857013]
[1741608767371,7.76735555,129.69,129.66,0.04857013]
[1741608767674,0.05735555,129.69,129.66,0.04857013]
[1741608767978,0.05735555,129.69,129.67,7.7104]
[1741608768177,0.05735555,129.69,129.66,0.04857013]
[1741608768480,7.7079,129.73,129.69,7.7094]
[1741608768775,1.9361,129.74,129.69,7.7094]
[1741608769176,7.7076,129.73,129.67,30.77009194]
[1741608769383,7.7076,129.73,129.68,62.0]
[1741608769577,0.05614012,129.71,129.69,0.05221101]
[1741608769771,0.05614012,129.71,129.69,7.76141101]
[1741608769971,0.05614012,129.71,129.69,0.05221101]
[1741608770976,7.76514012,129.71,129.69,0.05221101]
[1741608771180,0.05614012,129.71,129.69,0.05221101]
[1741608771572,7.7091,129.7,129.69,0.05221101]
[1741608771766,0.05614012,129.71,129.69,0.05221101]
[1741608773078,0.05614012,129.71,129.69,62.05221101]
[1741608773773,0.05614012,129.71,129.69,69.76191101]
[1741608774179,0.05614012,129.71,129.69,62.05221101]
[1741608774379,7.76474012,129.71,129.69,62.05221101]
[1741608774677,0.05614012,129.71,129.69,62.05221101]
[1741608775466,7.7091,129.7,129.69,0.05221101]
[1741608775675,0.05614012,129.71,129.69,0.05221101]
[1741608776375,7.7091,129.7,129.69,0.05221101]
[1741608777569,0.05614012,129.71,129.69,0.05221101]
[1741608778175,7.7091,129.7,129.69,0.05221101]
[1741608778480,0.05614012,129.71,129.69,62.05221101]
[1741608778779,7.76514012,129.71,129.69,62.05221101]
[1741608779373,0.05614012,129.71,129.69,62.05221101]
[1741608779570,7.7091,129.7,129.69,62.05221101]
[1741608779775,7.7091,129.7,129.69,0.05221101]
[1741608780677,7.76494012,129.71,129.69,0.05221101]
[1741608780884,0.05614012,129.71,129.69,0.05221101]
[1741608781284,7.7091,129.7,129.69,0.05221101]
[1741608781579,0.05614012,129.71,129.69,0.05221101]
[1741608781784,0.05614012,129.71,129.69,7.76171101]
[1741608781986,0.05614012,129.71,129.69,0.05221101]
[1741608782485,0.05614012,129.71,129.62,0.2493]
[1741608782686,2.0197,129.71,129.61,2.0543]
[1741608782886,7.7126,129.65,129.62,62.0]
[1741608783088,2.0197,129.71,129.62,62.0]
[1741608783584,2.0197,129.71,129.57,33.51921905]
[1741608783585,0.05217815,129.68,129.57,18.17364315]
[1741608783786,30.77009194,129.69,129.55,2.0849]
[1741608783974,7.7154,129.6,129.56,9.09078029]
[1741608784174,7.7154,129.6,129.56,7.7171]
[1741608784585,30.77009194,129.69,129.57,7.7165]
[1741608784785,0.05044702,129.59,129.57,7.77134965]
[1741608784983,30.77009194,129.69,129.55,2.0849]
[1741608785181,2.0197,129.71,129.58,30.77009194]
[1741608785780,7.7142,129.62,129.55,2.0849]
[1741608786079,2.0197,129.71,129.56,1.37367485]
[1741608786275,30.77009194,129.69,129.56,1.37367485]
[1741608786475,0.04999718,129.65,129.62,0.05505913]
[1741608786690,7.7131,129.64,129.62,0.05505913]
[1741608787088,0.04999718,129.65,129.62,0.05505913]
[1741608787383,7.7133,129.63,129.62,0.05505913]
[1741608787579,3.9047,129.64,129.57,69.7168]
[1741608787985,3.9047,129.64,129.57,62.0]
[1741608788187,2.0293,129.63,129.57,62.0]
[1741608788586,7.7154,129.6,129.57,62.0]
[1741608788787,0.05470905,129.61,129.59,0.05747398]
[1741608788989,0.05470905,129.61,129.6,7.7151]
[1741608789180,0.05470905,129.61,129.59,0.05747398]
[1741608790492,0.05470905,129.61,129.6,7.7151]
[1741608790681,0.05470905,129.61,129.59,0.05747398]
[1741608791392,4.1606,129.7,129.59,0.05747398]
[1741608791586,30.77009194,129.69,129.59,0.05747398]
[1741608791890,30.77009194,129.69,129.58,1.9656]
[1741608792087,4.1606,129.7,129.58,1.9656]
[1741608792285,0.05819749,129.65,129.63,0.05840418]
[1741608792486,7.7127,129.64,129.63,0.05840418]
[1741608792686,0.05863074,129.65,129.63,0.05840418]
[1741608793387,7.7127,129.64,129.63,0.05840418]
[1741608793787,0.05863074,129.65,129.57,62.0]
[1741608793987,7.7151,129.6,129.57,69.7166]
[1741608794191,2.0473,129.63,129.57,62.0]
[1741608794590,32.73969194,129.68,129.61,7.7142]
[1741608794781,2.0473,129.67,129.57,62.0]
[1741608794981,7.7124,129.65,129.63,0.05883814]
[1741608795491,0.0511263,129.65,129.63,0.05883814]
[1741608797579,7.7127,129.64,129.63,0.05883814]
[1741608798187,0.0511263,129.65,129.63,0.05883814]
[1741608799096,0.0511263,129.65,129.57,62.0]
[1741608799290,32.81739194,129.67,129.57,62.0]
[1741608799590,30.77009194,129.61,129.53,18.27156597]
[1741608799795,4.0247,129.6,129.53,18.27156597]
[1741608799995,4.0247,129.6,129.52,30.77009194]
[1741608800293,0.05034458,129.58,129.55,0.05600138]
[1741608800986,0.05034458,129.58,129.55,7.77350138]
[1741608801188,0.05034458,129.58,129.55,0.05600138]
[1741608802398,0.05034458,129.58,129.55,62.05600138]
[1741608802693,32.87369194,129.68,129.55,96.68609332]
[1741608802997,42.45726925,129.7,129.58,30.77009194]
[1741608803299,7.713,129.64,129.6,7.7149]
[1741608803503,2.1036,129.67,129.58,30.77009194]
[1741608803694,0.05026533,129.63,129.61,0.05125557]
[1741608804495,0.05026533,129.63,129.61,30.82134751]
[1741608804700,7.7116,129.66,129.63,7.713]
[1741608804995,7.7116,129.66,129.61,30.77009194]
[1741608805289,4.0556,129.69,129.61,30.77009194]
[1741608805290,7.7111,129.67,129.64,7.7127]
[1741608805494,4.0556,129.69,129.61,30.77009194]
[1741608805695,7.7113,129.67,129.64,7.7126]
[1741608805896,0.05716407,129.66,129.64,0.04865236]
[1741608806788,7.76906407,129.66,129.64,0.04865236]
[1741608806994,0.05716407,129.66,129.64,0.04865236]
[1741608807392,7.76896407,129.66,129.64,0.04865236]
[1741608807597,7.76896407,129.66,129.64,62.04865236]
[1741608808196,7.7121,129.65,129.64,62.04865236]
[1741608808397,7.7121,129.65,129.64,0.04865236]
[1741608808700,0.05716407,129.66,129.64,0.04865236]
[1741608810897,7.7121,129.65,129.64,0.04865236]
[1741608811097,0.05716407,129.66,129.56,2.091]
[1741608811407,7.716,129.59,129.57,62.0]
[1741608812000,7.7155,129.6,129.57,62.0]
[1741608812197,0.05405169,129.59,129.58,7.7162]
[1741608812396,30.77009194,129.67,129.58,7.7162]
[1741608812700,0.05826857,129.6,129.58,7.7162]
[1741608812901,30.77009194,129.67,129.55,30.77009194]
[1741608813099,7.7162,129.59,129.58,0.05647315]
[1741608813296,30.77009194,129.67,129.55,30.77009194]
[1741608813503,0.05702713,129.6,129.57,0.04879691]
[1741608813697,7.7152,129.6,129.57,7.7166]
[1741608813904,0.05924155,129.6,129.57,0.05601965]
[1741608814205,0.05924155,129.6,129.58,7.716]
[1741608814805,0.05924155,129.6,129.59,7.7157]
[1741608815111,30.77009194,129.67,129.57,0.05601965]
[1741608815298,7.7132,129.64,129.6,7.7147]
[1741608815500,34.82569194,129.69,129.56,2.1028]
[1741608815707,34.82569194,129.69,129.58,30.77009194]
[1741608816004,30.77009194,129.67,129.57,62.0]
[1741608816204,0.05192466,129.65,129.62,0.05549104]
[1741608816405,7.713,129.64,129.62,0.05549104]
[1741608816810,0.05192466,129.65,129.62,0.05549104]
[1741608817010,7.7132,129.64,129.62,0.05549104]
[1741608817210,0.05192466,129.65,129.62,0.05549104]
[1741608817614,7.7133,129.64,129.62,0.05549104]
[1741608818112,7.7133,129.63,129.62,0.05549104]
[1741608819009,0.05192466,129.65,129.54,222.77009194]
[1741608819205,2.0958,129.62,129.56,7.7174]
[1741608819406,2.0958,129.62,129.54,30.77009194]
[1741608819817,2.0958,129.62,129.59,7.7155]
[1741608820018,0.0510646,129.62,129.59,0.0552745]
[1741608820519,7.7151,129.6,129.59,0.0552745]
[1741608821118,7.7172,129.57,129.51,2.0791]
[1741608821319,7.7172,129.57,129.54,7.7183]
[1741608821525,2.0958,129.61,129.51,2.0791]
[1741608821725,7.7168,129.58,129.52,1.37521692]
[1741608822223,1.9741,129.65,129.56,30.77009194]
[1741608822615,1.9741,129.65,129.6,7.7148]
[1741608823019,1.9741,129.65,129.56,30.77009194]
[1741608823222,7.713,129.64,129.61,7.7142]
[1741608823417,1.9741,129.65,129.57,3.49037939]
[1741608823418,0.05179494,129.62,129.59,0.05621625]
[1741608824022,0.05179494,129.62,129.59,30.82630819]
[1741608824223,44.53176925,129.68,129.59,30.82630819]
[1741608824423,7.7114,129.67,129.63,7.7128]
[1741608824630,44.53176925,129.68,129.63,7.7128]
[1741608825129,2.0745,129.68,129.62,7.7136]
[1741608825330,0.04944069,129.67,129.64,0.05650907]
[1741608825623,7.7121,129.65,129.64,0.05650907]
[1741608825829,0.04944069,129.67,129.57,2.1166]
[1741608826033,30.77009194,129.67,129.57,2.1166]
[1741608826225,30.77009194,129.67,129.58,7.716]
[1741608826418,30.77009194,129.67,129.54,222.77009194]
[1741608826826,0.05589331,129.62,129.59,0.04985681]
[1741608827026,0.05589331,129.62,129.54,222.77009194]
[1741608827224,30.77009194,129.67,129.59,0.05310471]
[1741608827431,30.77009194,129.64,129.54,30.77009194]
[1741608827620,30.77009194,129.64,129.62,6.114e-05]
[1741608827621,30.82637366,129.64,129.62,6.114e-05]
[1741608827824,30.77009194,129.64,129.54,30.77009194]
[1741608828021,30.77009194,129.66,129.54,30.77009194]
[1741608828226,7.7136,129.63,129.54,30.77009194]
[1741608828622,30.77009194,129.66,129.55,1.3738413]
[1741608828823,0.0584803,129.6,129.57,0.04916264]
[1741608829023,30.77009194,129.66,129.55,1.3738413]
[1741608829235,0.04942532,129.6,129.57,30.82550993]
[1741608829425,7.7136,129.63,129.57,30.77009194]
[1741608829627,2.0745,129.68,129.57,30.81862956]
[1741608829822,0.05838468,129.61,129.6,30.77009194]
[1741608830024,7.7117,129.66,129.61,0.05358466]
[1741608830227,7.7117,129.66,129.63,7.7132]
[1741608830422,7.7113,129.67,129.61,0.05358466]
[1741608830630,2.0745,129.68,129.61,0.05358466]
[1741608831034,0.04896302,129.66,129.61,0.05358466]
[1741608831529,7.7122,129.65,129.61,0.05358466]
[1741608831926,0.04896302,129.66,129.61,0.05358466]
[1741608833737,0.04896302,129.66,129.64,7.7126]
[1741608834236,0.04896302,129.66,129.64,0.056515]
[1741608834443,7.76056302,129.66,129.64,0.056515]
[1741608834633,0.04896302,129.66,129.64,0.056515]
[1741608834940,7.76046302,129.66,129.64,7.768915]
[1741608835538,7.76046302,129.66,129.64,0.056515]
[1741608836441,0.04896302,129.66,129.64,0.056515]
[1741608836937,0.04896302,129.66,129.64,7.768915]
[1741608837132,7.76046302,129.66,129.64,7.768915]
[1741608837337,0.04896302,129.66,129.64,0.056515]
[1741608838842,0.04896302,129.66,129.65,7.7121]
[1741608839043,2.1288,129.69,129.64,0.056515]
[1741608839742,2.1288,129.69,129.67,7.7106]
[1741608840138,2.17807759,129.69,129.67,7.7106]
[1741608840335,2.17807759,129.69,129.67,0.05509733]
[1741608840742,7.7103,129.68,129.6,30.77009194]
[1741608840951,2.1288,129.69,129.61,1.3727691]
[1741608841152,7.7126,129.65,129.6,30.77009194]
[1741608841343,7.7126,129.65,129.62,7.7135]
[1741608841541,2.1288,129.69,129.6,30.77009194]
[1741608841943,0.05851079,129.66,129.63,0.0492188]
[1741608842648,7.7127,129.64,129.63,0.0492188]
[1741608843549,0.05851079,129.66,129.63,0.0492188]
[1741608844250,7.7127,129.64,129.63,0.0492188]
[1741608844936,0.05851079,129.66,129.63,0.0492188]
[1741608845344,0.05851079,129.66,129.63,7.7622188]
[1741608845550,0.05851079,129.66,129.63,0.0492188]
[1741608845939,0.05851079,129.66,129.63,30.81931074]
[1741608846143,2.1032,129.72,129.63,30.81931074]
[1741608846344,2.0865,129.74,129.66,30.77009194]
[1741608846653,42.45726925,129.76,129.69,30.77009194]
[1741608847243,0.05397954,129.74,129.71,0.04882767]
[1741608847649,0.05397954,129.74,129.71,7.75702767]
[1741608847848,0.05397954,129.74,129.71,0.04882767]
[1741608848352,0.05397954,129.74,129.72,7.7076]
[1741608848551,0.05397954,129.74,129.71,0.04882767]
[1741608849046,0.05397954,129.74,129.72,7.7076]
[1741608849347,0.05397954,129.74,129.73,7.7073]
[1741608850453,0.05397954,129.74,129.71,0.04882767]
[1741608852551,30.77009194,129.83,129.72,7.7075]
[1741608852750,6.136,129.82,129.72,38.47759194]
[1741608852954,6.136,129.82,129.72,30.77009194]
[1741608853253,30.77009194,129.77,129.65,20.37356597]
[1741608853453,2.06,129.76,129.65,20.37356597]
[1741608853754,0.05542931,129.72,129.69,0.05717414]
[1741608854451,7.7091,129.7,129.69,0.05717414]
[1741608854852,7.7106,129.68,129.63,7.7128]
[1741608855347,7.71,129.69,129.64,7.7125]
[1741608855553,34.73649194,129.75,129.63,30.77009194]
[1741608855848,7.76200179,129.7,129.68,0.05023276]
[1741608856049,7.7097,129.7,129.68,0.05023276]
[1741608856256,0.05013397,129.7,129.68,0.05023276]
[1741608856451,0.05013397,129.7,129.61,2.0511]
[1741608856452,7.7112,129.67,129.61,2.0511]
[1741608856755,30.77009194,129.72,129.61,2.0511]
[1741608856957,7.7101,129.69,129.65,7.7121]
[1741608857147,7.7101,129.69,129.61,2.0511]
[1741608857347,34.73649194,129.75,129.61,2.0511]
[1741608857548,3.9664,129.75,129.64,0.05384468]
[1741608857750,3.9664,129.75,129.63,30.77009194]
[1741608858256,3.9664,129.75,129.61,2.0511]
[1741608858454,3.9664,129.75,129.62,1.37130107]
[1741608858654,7.7109,129.68,129.64,7.7124]
[1741608858852,7.7109,129.68,129.67,0.05850122]
[1741608859052,3.9664,129.75,129.67,7.76940122]
[1741608859255,0.05187089,129.69,129.67,7.7109]
[1741608859454,3.9664,129.75,129.7,0.05417795]
[1741608859756,0.0551028,129.74,129.71,0.05749255]
[1741608860056,0.05442623,129.74,129.71,0.05749255]
[1741608860258,7.7079,129.72,129.71,0.05749255]
[1741608860455,0.05442623,129.74,129.71,7.76559255]
[1741608860851,0.05442623,129.74,129.71,0.05749255]
[1741608861747,7.7077,129.73,129.71,0.05749255]
[1741608861951,0.05442623,129.74,129.71,0.05749255]
[1741608862155,0.05442623,129.74,129.73,7.7073]
[1741608862356,2.0272,129.79,129.73,7.7073]
[1741608862551,2.0272,129.79,129.71,30.77009194]
[1741608863661,0.05622086,129.76,129.74,0.05436717]
[1741608864247,0.05622086,129.76,129.75,7.7062]
[1741608864755,2.0818,129.8,129.74,30.82445911]
[1741608865154,2.0818,129.8,129.75,62.0]
[1741608865464,2.0818,129.8,129.74,0.05436717]
[1741608865663,0.05228961,129.79,129.74,0.05436717]
[1741608866157,0.05228961,129.79,129.75,30.77009194]
[1741608866552,7.702,129.82,129.75,30.77009194]
[1741608866759,2.0303,129.84,129.75,30.77009194]
[1741608867058,2.0303,129.84,129.76,7.7051]
[1741608867258,2.0303,129.84,129.73,2.1071]
[1741608867661,0.05681125,129.8,129.77,0.05637635]
[1741608868060,3.91681125,129.8,129.69,2.001]
[1741608868355,30.77009194,129.78,129.67,62.0]
[1741608869155,7.7093,129.7,129.67,69.7107]
[1741608869361,30.77009194,129.78,129.71,0.05805183]
[1741608869663,0.04994628,129.7,129.64,22.13893334]
[1741608869858,30.77009194,129.75,129.64,22.13893334]
[1741608870260,30.77009194,129.75,129.64,29.85153334]
[1741608870556,30.77009194,129.75,129.64,7.7126]
[1741608870757,7.7102,129.69,129.68,0.05365856]
[1741608870953,0.05023048,129.71,129.48,30.77009194]
[1741608871154,2.0036,129.71,129.6,30.77009194]
[1741608871357,30.77009194,129.69,129.57,1.9539]
[1741608871959,7.7137,129.63,129.57,9.6703]
[1741608872166,0.05664277,129.64,129.62,0.0559434]
[1741608872365,30.77009194,129.69,129.57,62.0]
[1741608872566,0.05232244,129.64,129.62,0.05762743]
[1741608872761,30.77009194,129.69,129.62,0.05762743]
[1741608872964,0.05459257,129.64,129.62,0.05762743]
[1741608873164,2.0036,129.71,129.62,0.05762743]
[1741608873363,0.04966057,129.64,129.59,30.77009194]
[1741608873563,7.7101,129.69,129.65,0.04973216]
[1741608873767,2.0036,129.71,129.59,30.77009194]
[1741608873964,0.05198417,129.68,129.66,0.0518153]
[1741608874162,7.7109,129.67,129.59,30.77009194]
[1741608874467,0.05420731,129.68,129.57,62.0]
[1741608874768,2.0006,129.7,129.57,92.77009194]
[1741608875163,7.7133,129.64,129.57,92.77009194]
[1741608875363,7.7133,129.64,129.57,62.0]
[1741608875666,0.05396116,129.62,129.59,0.0533787]
[1741608876570,0.05396116,129.62,129.59,30.82347064]
[1741608876966,2.0006,129.7,129.59,30.82347064]
[1741608877168,3.9268,129.7,129.62,30.77009194]
[1741608877560,3.9268,129.7,129.6,31.58649194]
[1741608878162,0.05776284,129.66,129.64,0.05593125]
[1741608878467,0.05776284,129.66,129.64,7.76823125]
[1741608878772,0.05776284,129.66,129.64,0.05593125]
[1741608878974,0.05776284,129.66,129.65,7.7121]
[1741608879170,0.05776284,129.66,129.64,0.05593125]
[1741608879571,0.05776284,129.66,129.65,7.7121]
[1741608879876,126.66050478,129.81,129.64,30.82602319]
[1741608880174,7.7069,129.74,129.67,30.77009194]
[1741608880785,6.1129,129.77,129.67,30.77009194]
[1741608880993,4.1578,129.77,129.7,30.77009194]
[1741608881286,4.1578,129.77,129.67,2.1294]
[1741608881782,7.7062,129.75,129.67,2.1294]
[1741608882181,0.05511332,129.72,129.7,7.76603781]
[1741608882778,4.1578,129.77,129.7,0.05693781]
[1741608882984,2.0956,129.77,129.71,62.0]
[1741608883178,9.6593,129.79,129.71,92.77009194]
[1741608883786,9.6593,129.79,129.74,7.7063]
[1741608884088,0.05423505,129.76,129.74,7.75624305]
[1741608884288,0.05423505,129.76,129.75,7.7062]
[1741608884488,0.05423505,129.76,129.74,0.04994305]
[1741608884890,0.05423505,129.76,129.75,7.7062]
[1741608885185,4.1224,129.8,129.74,30.82003499]
[1741608886084,4.1224,129.8,129.74,38.52643499]
[1741608886282,0.0541595,129.78,129.74,0.04994305]
[1741608887083,7.7062,129.75,129.74,0.04994305]
[1741608887279,0.0541595,129.78,129.74,0.04994305]
[1741608887688,7.7062,129.75,129.74,0.04994305]
[1741608890687,1.9695,129.77,129.67,2.1294]
[1741608890688,32.73959194,129.77,129.67,2.1294]
[1741608891281,32.73959194,129.77,129.68,7.71]
[1741608891788,7.7092,129.7,129.67,9.8398]
[1741608892289,0.05045729,129.7,129.67,0.05526822]
[1741608892885,7.7101,129.69,129.67,0.05526822]
[1741608893292,0.05045729,129.7,129.67,0.05526822]
[1741608894298,7.7103,129.68,129.67,0.05526822]
[1741608894797,7.7134,129.63,129.6,7.7148]
[1741608894988,30.77009194,129.69,129.58,32.74389194]
[1741608895188,32.88779194,129.71,129.59,1.37368232]
[1741608895894,0.0568109,129.66,129.64,0.05447554]
[1741608896095,2.1334,129.7,129.59,1.37368232]
[1741608896296,7.7142,129.62,129.57,7.7167]
[1741608896492,30.77009194,129.68,129.57,7.7167]
[1741608896695,30.77009194,129.66,129.56,30.77009194]
[1741608896994,4.1634,129.65,129.57,63.37455578]
[1741608897189,4.1634,129.65,129.57,62.0]
[1741608897390,4.1634,129.65,129.6,0.05067612]
[1741608897391,0.04956317,129.62,129.6,0.05067612]
[1741608898200,0.04956317,129.62,129.6,7.76547612]
[1741608898388,0.04956317,129.62,129.6,0.05067612]
[1741608898592,0.04956317,129.62,129.61,7.7145]
[1741608899391,0.04956317,129.62,129.6,0.05067612]
[1741608899992,0.04956317,129.62,129.61,7.7145]
[1741608900189,0.04956317,129.62,129.6,0.05067612]
[1741608901098,0.04956317,129.62,129.61,7.7145]
[1741608901499,0.04956317,129.62,129.6,0.05067612]
[1741608901999,0.04956317,129.62,129.61,7.7145]
[1741608903193,1.9813,129.69,129.6,0.05067612]
[1741608903401,3.911,129.69,129.61,62.0]
[1741608903701,3.911,129.69,129.59,2.0432]
[1741608904097,7.7124,129.65,129.62,7.7136]
[1741608904400,7.7685631,129.65,129.62,0.05568021]
[1741608904798,0.0561631,129.65,129.62,0.05568021]
[1741608905197,0.0561631,129.65,129.62,30.82577215]
[1741608905397,0.0561631,129.65,129.64,7.7127]
[1741608906103,2.1334,129.7,129.62,30.82577215]
[1741608906291,2.1334,129.7,129.62,0.05568021]
[1741608906498,32.90349194,129.7,129.6,92.77009194]
[1741608906801,2.1334,129.7,129.6,92.77009194]
[1741608907002,7.71,129.69,129.6,92.77009194]
[1741608907304,0.05891161,129.66,129.65,7.7115]
[1741608908908,7.71,129.69,129.64,0.04926416]
[1741608909115,6.1065,129.73,129.64,0.04926416]
[1741608909409,6.1065,129.73,129.68,7.7099]
[1741608909602,6.1065,129.73,129.63,30.77009194]
[1741608909810,6.1065,129.73,129.66,30.77009194]
[1741608910006,0.05877063,129.69,129.67,0.04891196]
[1741608910209,30.77009194,129.79,129.67,0.04891196]
[1741608910508,3.9929,129.78,129.69,30.77009194]
[1741608910710,7.7062,129.75,129.72,7.7076]
[1741608910904,3.9929,129.78,129.66,30.77009194]
[1741608911104,34.76299194,129.78,129.66,30.77009194]
[1741608911513,0.05300237,129.73,129.71,0.05261699]
[1741608911718,34.76299194,129.78,129.71,0.05261699]
[1741608911907,0.05862035,129.73,129.71,0.05261699]
[1741608912207,0.05775382,129.73,129.71,0.05261699]
[1741608914504,7.76525382,129.73,129.71,0.05261699]
[1741608914710,0.05775382,129.73,129.71,0.05261699]
[1741608915707,0.05775382,129.73,129.71,7.76111699]
[1741608915903,0.05775382,129.73,129.71,0.05261699]
[1741608916300,7.7079,129.72,129.71,0.05261699]
[1741608916501,0.05775382,129.73,129.71,0.05261699]
[1741608916703,7.7079,129.72,129.71,0.05261699]
[1741608917517,0.05775382,129.73,129.71,0.05261699]
[1741608918312,7.7079,129.72,129.71,0.05261699]
[1741608918710,0.05775382,129.73,129.71,0.05261699]
[1741608920203,0.05775382,129.73,129.71,30.82270893]
[1741608920714,0.05775382,129.73,129.71,0.05261699]
[1741608921513,0.05775382,129.73,129.72,7.7079]
[1741608922317,0.05775382,129.73,129.71,0.05261699]
[1741608922507,7.76525382,129.73,129.71,0.05261699]
[1741608922710,0.05775382,129.73,129.71,7.76061699]
[1741608923110,0.05775382,129.73,129.71,0.05261699]
[1741608924010,0.05775382,129.73,129.71,7.76081699]
[1741608924310,0.05775382,129.73,129.71,0.05261699]
[1741608924511,0.05775382,129.73,129.72,7.7079]
[1741608924917,0.05775382,129.73,129.71,0.05261699]
[1741608925712,0.05775382,129.73,129.71,7.76091699]
[1741608925910,0.05775382,129.73,129.71,0.05261699]
[1741608926119,19.24415624,129.72,129.66,7.7111]
[1741608926416,19.24415624,129.72,129.63,21.32435624]
[1741608926615,21.32025624,129.72,129.63,21.32435624]
[1741608926915,19.24415624,129.7,129.61,19.24415624]
[1741608927118,7.7119,129.66,129.61,19.24415624]
[1741608927413,10.61841332,129.82,129.65,38.48831248]
[1741608927617,10.61841332,129.82,129.77,19.24415624]
[1741608927818,49.09056666,129.83,129.81,19.24415624]
[1741608928114,126.66050478,129.84,129.81,19.24415624]
[1741608928316,206.51449715,129.85,129.84,7.7008]
[1741608928818,206.51449715,129.85,129.81,0.05036703]
[1741608929308,3.978,129.84,129.81,0.05036703]
[1741608929511,5.9117,129.84,129.81,0.05036703]
[1741608929912,3.978,129.84,129.81,0.05036703]
[1741608930111,206.51449715,129.85,129.81,0.05036703]
[1741608930312,206.51449715,129.85,129.82,30.71393119]
[1741608930511,49.42539598,129.85,129.84,7.7008]
[1741608930712,5.46952426,129.86,129.82,30.71393119]
[1741608930907,5.46952426,129.86,129.85,38.41413119]
[1741608931114,7.696e-05,129.86,129.85,42.27413119]
[1741608931314,7.696e-05,129.86,129.85,7.7002]
[1741608932205,7.696e-05,129.86,129.85,69.7002]
[1741608932528,7.696e-05,129.86,129.84,0.05922341]
[1741608932715,7.696e-05,129.86,129.85,206.27883133]
[1741608933117,7.696e-05,129.86,129.85,213.97903133]
[1741608933319,7.696e-05,129.86,129.85,206.27883133]
[1741608934120,7.696e-05,129.86,129.85,213.97903133]
[1741608934520,7.696e-05,129.86,129.84,0.05922341]
[1741608934521,49.91578991,129.94,129.84,123.29704747]
[1741608934818,5.9237,129.95,129.84,123.29704747]
[1741608934819,49.91578991,129.91,129.84,123.23782406]
[1741608935210,49.91578991,129.91,129.85,82.09099747]
[1741608935818,0.05133899,129.89,129.87,0.05213802]
[1741608936014,0.05133899,129.89,129.85,82.09099747]
[1741608936221,7.6986,129.88,129.84,72.46849747]
[1741608936522,49.91578991,129.86,129.84,43.64919747]
[1741608936729,49.91578991,129.86,129.82,123.23782406]
[1741608936914,7.7008,129.85,129.82,123.23782406]
[1741608937116,0.05354844,129.85,129.83,0.05554257]
[1741608937522,7.7008,129.84,129.83,0.05554257]
[1741608938022,3.86,129.84,129.76,123.23782406]
[1741608938223,49.91578991,129.82,129.76,123.23782406]
[1741608939026,49.91578991,129.85,129.76,185.23782406]
[1741608939227,0.05641227,129.8,129.78,0.05768294]
[1741608939415,49.91578991,129.85,129.78,0.05768294]
[1741608939622,0.05728423,129.8,129.78,0.05768294]
[1741608939927,49.91578991,129.85,129.78,0.05768294]
[1741608940128,0.04941307,129.8,129.78,0.05768294]
[1741608940329,49.91578991,129.85,129.78,0.05768294]
[1741608940330,7.7031,129.81,129.78,0.05768294]
[1741608940629,0.05199093,129.8,129.78,0.05768294]
[1741608941023,49.91578991,129.82,129.78,0.05768294]
[1741608941329,0.05891983,129.8,129.78,0.05768294]
[1741608942329,7.76211983,129.8,129.78,0.05768294]
[1741608942532,0.05891983,129.8,129.78,0.05768294]